bitfinex/quotes_SOLUSD_20251013
["timestamp","ask_amount","ask_price","bid_price","bid_amount"]
[1760368079444,5.93244302,194.36,194.27,18.01616306]
[1760368079746,0.67,194.35,194.27,18.01616306]
[1760368079938,0.67,194.35,194.27,5.14747516]
[1760368080139,5.93244302,194.34,194.27,5.14747516]
[1760368080360,5.93244302,194.32,194.26,25.9477238]
[1760368080560,5.93244302,194.3,194.23,12.8709754]
[1760368080767,0.09612399,194.28,194.25,10.87647521]
[1760368080969,0.09758293,194.29,194.28,10.87647521]
[1760368081149,0.09758293,194.29,194.28,11.39119623]
[1760368081349,0.09758293,194.29,194.28,12.05119623]
[1760368082163,0.09758293,194.29,194.25,0.66]
[1760368082356,0.09758293,194.29,194.28,20.8]
[1760368082557,0.09758293,194.29,194.25,10.87647521]
[1760368082740,5.93244302,194.26,194.15,5.8106567]
[1760368083067,5.93244302,194.22,194.13,5.15102606]
[1760368083367,20.8,194.26,194.13,5.15102606]
[1760368083569,0.67,194.24,194.15,10.87647521]
[1760368084052,6.60244302,194.24,194.15,20.8]
[1760368084367,5.14865621,194.23,194.14,12.87674759]
[1760368084555,5.93244302,194.21,194.15,5.15061694]
[1760368084743,5.93244302,194.19,194.13,5.15094173]
[1760368085263,0.67,194.2,194.13,18.0289101]
[1760368085646,0.67,194.19,194.11,25.95159269]
[1760368085862,5.93244302,194.17,194.08,10.87647521]
[1760368086065,5.93244302,194.15,194.08,25.95251442]
[1760368086267,11.08338856,194.14,194.07,10.87647521]
[1760368086468,6.60244302,194.15,194.07,10.87647521]
[1760368086675,5.93244302,194.14,194.07,31.67647521]
[1760368086974,6.60244302,194.13,194.06,5.15304544]
[1760368087151,5.93244302,194.11,194.05,5.35330553]
[1760368087346,6.60244302,194.11,194.05,0.2]
[1760368087547,5.93244302,194.09,194.05,0.2]
[1760368087770,0.67,194.11,194.05,0.2]
[1760368088070,5.93244302,194.1,194.05,0.2]
[1760368088269,0.67,194.13,194.05,5.35327182]
[1760368088455,5.93244302,194.15,194.05,6.01327182]
[1760368088651,0.67,194.14,194.05,18.89654932]
[1760368089052,6.60244302,194.14,194.05,18.89654932]
[1760368089248,6.60244302,194.16,194.06,32.33647521]
[1760368089968,5.93244302,194.14,194.06,32.33647521]
[1760368090174,6.60244302,194.15,194.06,32.33647521]
[1760368090355,6.60244302,194.15,194.07,18.03472973]
[1760368091571,19.99999999,194.26,194.08,10.87647521]
[1760368091751,21.47,194.2,194.08,11.53647521]
[1760368091947,5.93244302,194.18,194.08,11.53647521]
[1760368092467,0.67,194.17,194.08,11.53647521]
[1760368092855,6.60244302,194.17,194.09,18.03287134]
[1760368093051,0.67,194.17,194.09,18.03287134]
[1760368093254,6.60244302,194.17,194.09,18.03287134]
[1760368093474,0.67,194.17,194.09,18.03287134]
[1760368093768,0.66,194.21,194.1,11.53647521]
[1760368093976,6.59244302,194.21,194.1,11.53647521]
[1760368094273,0.66,194.21,194.11,0.66]
[1760368094479,6.59244302,194.21,194.11,0.66]
[1760368094680,0.66,194.24,194.14,10.87647521]
[1760368094853,0.66,194.24,194.17,20.8]
[1760368095054,0.09758293,194.29,194.18,18.02451333]
[1760368095055,11.74007475,194.27,194.18,18.02451333]
[1760368095753,0.66,194.26,194.14,10.87647521]
[1760368095977,5.93244302,194.21,194.14,36.82717567]
[1760368096376,18.01631963,194.27,194.14,36.82717567]
[1760368096377,5.93244302,194.19,194.14,20.8]
[1760368096559,6.59244302,194.18,194.11,10.87647521]
[1760368096761,5.93244302,194.17,194.1,5.15198351]
[1760368096973,6.59244302,194.18,194.11,12.87888019]
[1760368097290,0.66,194.18,194.11,12.87888019]
[1760368097654,6.59244302,194.18,194.11,12.87888019]
[1760368097879,5.93244302,194.15,194.1,5.15198351]
[1760368098050,6.59244302,194.14,194.1,5.15198351]
[1760368098254,5.93244302,194.15,194.1,5.15198351]
[1760368098556,0.66,194.15,194.1,5.15198351]
[1760368099158,0.66,194.15,194.09,18.03287134]
[1760368099363,12.8717554,194.23,194.09,18.03287134]
[1760368099565,5.93244302,194.19,194.09,18.69287134]
[1760368099967,6.59244302,194.19,194.09,18.69287134]
[1760368100265,5.93244302,194.18,194.09,18.69287134]
[1760368100784,0.10319212,194.1,194.09,29.56934655]
[1760368102676,0.10319212,194.1,194.09,16.68872416]
[1760368103167,0.10391422,194.11,194.1,10.87647521]
[1760368103372,0.1066429,194.12,194.11,31.67647521]
[1760368103580,0.1066429,194.12,194.11,32.33647521]
[1760368104085,0.10209671,194.13,194.12,10.87647521]
[1760368104307,0.11020009,194.19,194.12,10.87647521]
[1760368104308,0.11020009,194.19,194.12,11.53647521]
[1760368104457,6.59244302,194.3,194.15,31.67647521]
[1760368104662,5.80678956,194.3,194.21,18.02172905]
[1760368104956,5.93244302,194.26,194.21,5.14906544]
[1760368105164,0.66,194.25,194.21,5.14906544]
[1760368105370,5.93244302,194.26,194.21,5.14906544]
[1760368105371,0.66,194.24,194.21,5.14906544]
[1760368106580,0.66,194.24,194.2,18.02263426]
[1760368107881,21.46,194.31,194.21,21.46]
[1760368108058,0.66,194.3,194.21,21.46]
[1760368108257,0.66,194.33,194.22,11.53647521]
[1760368108488,6.59244302,194.33,194.22,11.53647521]
[1760368108691,6.59244302,194.33,194.23,18.01987334]
[1760368108892,5.80597683,194.33,194.23,18.01987334]
[1760368109394,5.93244302,194.32,194.23,18.01987334]
[1760368109990,5.93244302,194.28,194.23,5.14853524]
[1760368110192,0.66,194.28,194.23,5.14853524]
[1760368110576,0.66,194.28,194.22,18.02079242]
[1760368110777,0.66,194.32,194.23,10.87647521]
[1760368110987,0.66,194.34,194.24,0.66]
[1760368111181,6.59244302,194.34,194.24,0.66]
[1760368111385,5.93244302,194.33,194.24,0.66]
[1760368111591,0.66,194.34,194.24,0.66]
[1760368111892,6.59244302,194.34,194.24,0.66]
[1760368112093,0.66,194.34,194.25,10.87647521]
[1760368112677,5.80566645,194.34,194.26,5.14774014]
[1760368113090,0.66,194.34,194.26,18.01709049]
[1760368113295,0.66,194.38,194.29,20.8]
[1760368113487,5.93244302,194.4,194.3,10.87647521]
[1760368113809,5.90387183,194.41,194.3,11.53647521]
[1760368114095,5.93244302,194.37,194.3,20.8]
[1760368114298,0.66,194.37,194.3,20.8]
[1760368114492,6.59244302,194.37,194.3,20.8]
[1760368114793,5.93244302,194.35,194.3,20.8]
[1760368114993,11.73738734,194.37,194.3,20.8]
[1760368115391,5.93244302,194.36,194.3,20.8]
[1760368115693,11.07755876,194.36,194.3,25.94663796]
[1760368116077,5.93244302,194.36,194.3,25.94663796]
[1760368116276,6.59244302,194.37,194.3,25.94663796]
[1760368116678,0.76,194.41,194.31,10.87647521]
[1760368116879,0.76,194.41,194.31,11.53647521]
[1760368117201,5.9038104,194.41,194.31,11.53647521]
[1760368117577,11.83625342,194.41,194.31,11.53647521]
[1760368117773,5.93244302,194.4,194.32,18.01152736]
[1760368118387,0.1,194.41,194.33,11.53647521]
[1760368118698,0.66,194.4,194.33,10.87647521]
[1760368119493,6.59244302,194.39,194.32,5.14615067]
[1760368119690,5.93244302,194.38,194.32,5.14615067]
[1760368119985,11.73684913,194.39,194.31,28.88892953]
[1760368120182,11.73684913,194.39,194.31,29.54892953]
[1760368120386,5.80440611,194.39,194.31,29.54892953]
[1760368120582,5.93244302,194.38,194.31,5.14641552]
[1760368120786,0.09359774,194.32,194.31,5.14641552]
[1760368121705,0.09359774,194.32,194.29,5.14694528]
[1760368122001,0.09359774,194.32,194.29,5.80694528]
[1760368122182,0.09359774,194.32,194.29,18.67430849]
[1760368122382,0.09359774,194.32,194.31,10.87647521]
[1760368122798,0.09359774,194.32,194.31,11.53647521]
[1760368124006,0.11307234,194.33,194.31,17.19753228]
[1760368124211,0.11307234,194.33,194.32,0.66]
[1760368125912,0.11307234,194.33,194.32,26.60615067]
[1760368126488,0.0956691,194.34,194.33,31.67647521]
[1760368126699,0.10241717,194.4,194.33,32.85106379]
[1760368127012,0.10241717,194.4,194.35,10.87647521]
[1760368127214,0.10241717,194.4,194.37,20.8]
[1760368127415,1e-08,194.39,194.38,10.87647521]
[1760368127709,0.21269148,194.41,194.4,31.67647521]
[1760368127889,0.21269148,194.41,194.4,36.82050813]
[1760368128093,0.21269148,194.41,194.4,37.48050813]
[1760368128315,0.21269148,194.41,194.4,32.33647521]
[1760368128615,0.21269148,194.41,194.4,25.94403292]
[1760368129983,0.21269148,194.41,194.4,36.82050813]
[1760368130206,0.21269148,194.41,194.4,37.48050813]
[1760368132307,0.82,194.49,194.4,37.48050813]
[1760368132308,0.1,194.49,194.48,31.67647521]
[1760368133919,0.1,194.49,194.48,37.47839211]
[1760368134318,0.1,194.51,194.49,10.87647521]
[1760368134491,1e-08,194.51,194.5,10.87647521]
[1760368134695,1e-08,194.51,194.5,11.53647521]
[1760368134897,0.1,194.53,194.51,10.87647521]
[1760368135101,0.1,194.54,194.53,10.87647521]
[1760368135493,0.1,194.54,194.53,11.53647521]
[1760368135899,0.1,194.54,194.53,20.91647521]
[1760368136200,0.1,194.54,194.53,26.05707049]
[1760368136597,0.1,194.58,194.57,10.87647521]
[1760368137111,0.1,194.58,194.57,20.91647521]
[1760368137299,0.1,194.58,194.57,11.53647521]
[1760368138118,0.1,194.58,194.57,20.25647521]
[1760368138299,0.1,194.58,194.57,16.67601367]
[1760368138503,0.72,194.68,194.61,10.87647521]
[1760368138997,0.72,194.68,194.61,20.25647521]
[1760368139519,0.72,194.68,194.63,10.87647521]
[1760368140118,0.72,194.67,194.63,10.87647521]
[1760368140319,0.72,194.66,194.62,5.13821806]
[1760368140496,0.72,194.65,194.62,5.13821806]
[1760368140811,0.10695134,194.63,194.62,5.13821806]
[1760368141517,0.10695134,194.63,194.61,5.13848209]
[1760368141819,0.72,194.62,194.6,20.8]
[1760368141997,0.10695134,194.63,194.6,25.93869649]
[1760368143113,0.10695134,194.63,194.61,10.87647521]
[1760368143719,0.10695134,194.63,194.6,20.8]
[1760368143898,0.10695134,194.63,194.57,12.84840064]
[1760368143899,0.72,194.62,194.59,10.87647521]
[1760368145006,0.72,194.62,194.59,5.13874846]
[1760368145214,0.72,194.61,194.57,36.81597212]
[1760368145393,0.10695134,194.63,194.57,36.81597212]
[1760368145596,0.10695134,194.63,194.62,10.87647521]
[1760368146118,0.10695134,194.63,194.62,11.53647521]
[1760368146312,0.10695134,194.63,194.62,10.87647521]
[1760368147216,0.10695134,194.63,194.62,16.01469327]
[1760368148015,0.10695134,194.63,194.62,36.81469327]
[1760368150117,0.10695134,194.63,194.6,132.5]
[1760368150310,0.72,194.62,194.57,33.64827138]
[1760368150510,0.72,194.62,194.58,16.01574954]
[1760368150916,0.10695134,194.63,194.55,132.5]
[1760368151123,8.91977798,194.58,194.51,5.14112384]
[1760368151329,0.72,194.57,194.52,10.87647521]
[1760368151625,0.72,194.57,194.51,5.14112384]
[1760368151626,0.72,194.56,194.51,5.14112384]
[1760368151799,0.72,194.55,194.51,5.14112384]
[1760368152003,18.08985507,194.63,194.52,0.66]
[1760368152004,0.72,194.6,194.52,0.66]
[1760368152302,0.10695134,194.63,194.58,10.87647521]
[1760368152501,0.10695134,194.63,194.62,31.67647521]
[1760368154524,0.10695134,194.63,194.62,36.81469327]
[1760368155427,0.10695134,194.63,194.62,37.47469327]
[1760368156020,0.10695134,194.63,194.62,46.85469327]
[1760368156225,0.10695134,194.63,194.62,46.19469327]
[1760368156413,0.10695134,194.63,194.62,36.81469327]
[1760368157225,0.10695134,194.63,194.62,46.19469327]
[1760368157525,0.10695134,194.63,194.62,36.81469327]
[1760368157716,0.10695134,194.63,194.61,0.5138482]
[1760368157717,0.81695134,194.63,194.57,17.98816256]
[1760368157925,0.71,194.62,194.58,10.87647521]
[1760368158107,0.71,194.61,194.6,20.8]
[1760368158307,0.10695134,194.63,194.6,20.8]
[1760368158524,0.10695134,194.63,194.61,5.13848209]
[1760368158724,0.71,194.62,194.61,5.13848209]
[1760368158925,0.71,194.62,194.57,12.84823428]
[1760368159121,0.71,194.62,194.58,20.8]
[1760368159308,0.71,194.61,194.58,20.8]
[1760368159514,0.10695134,194.63,194.58,25.93923123]
[1760368159716,0.71,194.62,194.58,20.8]
[1760368159922,0.10695134,194.63,194.59,10.87647521]
[1760368160430,0.71,194.62,194.59,20.8]
[1760368160617,0.71,194.61,194.59,20.8]
[1760368160801,0.10279344,194.6,194.59,20.8]
[1760368161005,0.81279344,194.6,194.58,10.87647521]
[1760368161415,0.10279344,194.6,194.57,10.87647521]
[1760368161613,0.10279344,194.6,194.59,31.67647521]
[1760368162029,0.11023631,194.61,194.6,10.87647521]
[1760368162337,0.09816339,194.63,194.62,31.67647521]
[1760368162635,0.09816339,194.63,194.62,36.81469327]
[1760368162832,0.09816339,194.63,194.62,46.85469327]
[1760368163134,0.09816339,194.63,194.62,37.47469327]
[1760368163316,0.11205543,194.64,194.63,10.87647521]
[1760368163630,0.11205543,194.64,194.63,11.53647521]
[1760368164231,0.11205543,194.64,194.63,20.89647521]
[1760368164537,0.11205543,194.64,194.63,26.03442927]
[1760368164728,0.11205543,194.64,194.63,16.67442927]
[1760368165131,0.11205543,194.64,194.63,26.03442927]
[1760368165641,0.0989978,194.66,194.65,31.67647521]
[1760368165824,0.09447978,194.69,194.67,10.87647521]
[1760368166020,0.09447978,194.69,194.68,30.16]
[1760368166231,0.09447978,194.69,194.68,20.8]
[1760368166542,0.09447978,194.69,194.68,35.29663447]
[1760368167013,0.09447978,194.69,194.68,25.93663447]
[1760368167513,0.09447978,194.69,194.68,36.81310968]
[1760368167721,0.09447978,194.69,194.68,46.83310968]
[1760368167928,0.09447978,194.69,194.68,36.81310968]
[1760368168238,0.71,194.8,194.72,31.67647521]
[1760368168421,0.71,194.8,194.77,31.67647521]
[1760368168612,0.71,194.85,194.79,10.87647521]
[1760368169015,0.71,194.85,194.79,20.23647521]
[1760368169344,100.0,239.09,194.79,20.23647521]
[1760368169345,8.91977798,194.88,194.79,20.23647521]
[1760368169553,8.91977798,194.9,194.79,10.87647521]
[1760368169836,0.71,194.88,194.82,31.67647521]
[1760368170044,0.71,194.92,194.87,10.87647521]
[1760368170417,0.71,194.91,194.87,20.23647521]
[1760368170643,0.71,194.91,194.88,5.13136288]
[1760368170840,0.71,194.94,194.87,16.0080992]
[1760368171147,0.71,194.94,194.88,9.36]
[1760368171431,0.71,194.93,194.87,20.23647521]
[1760368171632,0.71,194.93,194.87,16.00787591]
[1760368172135,0.71,194.93,194.88,10.87647521]
[1760368172536,0.71,194.93,194.89,5.13109959]
[1760368173123,5.12906504,194.97,194.9,10.87647521]
[1760368173443,0.71,194.96,194.9,10.87647521]
[1760368173626,0.71,194.95,194.9,10.87647521]
[1760368173830,0.71,194.94,194.9,10.87647521]
[1760368174024,0.71,194.93,194.9,16.00723648]
[1760368174862,0.71,194.92,194.9,10.87647521]
[1760368175044,5.12927991,194.96,194.87,12.82906553]
[1760368175251,5.12927991,194.96,194.87,10.87647521]
[1760368175252,0.71,194.91,194.87,10.87647521]
[1760368175546,8.91977798,194.92,194.86,20.8]
[1760368175547,0.71,194.9,194.86,20.8]
[1760368175840,5.12927991,194.96,194.86,20.8]
[1760368176033,0.71,194.9,194.86,25.93180589]
[1760368176340,12.8231432,194.96,194.87,10.87647521]
[1760368176341,0.71,194.94,194.87,10.87647521]
[1760368177144,0.71,194.97,194.89,10.87647521]
[1760368177320,0.71,194.97,194.91,31.67647521]
[1760368177932,0.71,194.97,194.92,5.13030987]
[1760368178125,0.71,195.01,194.93,11.53647521]
[1760368178437,0.71,195.01,194.95,10.87647521]
[1760368178645,0.71,195.01,194.94,10.87647521]
[1760368179929,0.71,195.0,194.94,16.00603744]
[1760368180241,0.71,194.99,194.9,10.87647521]
[1760368180626,0.71,194.98,194.9,10.87647521]
[1760368180940,0.09848849,194.91,194.9,20.23647521]
[1760368181140,0.09848849,194.91,194.9,11.53647521]
[1760368181441,0.09848849,194.91,194.9,20.89647521]
[1760368181644,0.09848849,194.91,194.9,11.53647521]
[1760368181936,0.09848849,194.91,194.9,16.66731153]
[1760368182256,0.09848849,194.91,194.9,5.79083632]
[1760368182428,0.09848849,194.91,194.9,26.02731153]
[1760368182924,0.09499949,194.92,194.9,26.02731153]
[1760368182925,0.09499949,194.92,194.91,10.87647521]
[1760368183251,0.10301603,194.93,194.92,31.67647521]
[1760368183451,0.10896312,194.95,194.93,10.87647521]
[1760368183739,0.09978514,194.98,194.95,31.67647521]
[1760368183943,0.09978514,194.98,194.95,36.80599559]
[1760368184147,0.09978514,194.98,194.95,37.05599559]
[1760368184330,0.09978514,194.98,194.95,36.80599559]
[1760368185532,0.09978514,194.98,194.95,46.41599559]
[1760368185744,0.09978514,194.98,194.95,37.05599559]
[1760368186045,1e-08,194.99,194.98,31.67647521]
[1760368186248,1e-08,195.0,194.98,41.03647521]
[1760368186422,1e-08,195.0,194.99,0.25]
[1760368186743,1e-08,195.0,194.99,11.12647521]
[1760368186940,1e-08,195.0,194.99,20.23647521]
[1760368187140,1e-08,195.0,194.99,41.03647521]
[1760368187336,1e-08,195.0,194.99,31.67647521]
[1760368188046,1e-08,195.0,194.99,36.80494333]
[1760368189530,1e-08,195.0,194.99,37.05494333]
[1760368190133,1e-08,195.0,194.99,16.25494333]
[1760368190325,1e-08,195.0,194.99,25.59494333]
[1760368190526,1e-08,195.0,194.99,37.05494333]
[1760368190750,1e-08,195.0,194.99,16.25494333]
[1760368191128,1e-08,195.0,194.99,46.39494333]
[1760368191327,1e-08,195.0,194.99,37.05494333]
[1760368191625,0.66,195.09,195.03,10.87647521]
[1760368191840,0.66,195.11,195.03,10.87647521]
[1760368192046,0.66,195.1,195.05,10.87647521]
[1760368192344,0.66,195.09,195.05,10.87647521]
[1760368192545,0.66,195.09,195.04,5.1271534]
[1760368192862,0.66,195.08,195.04,5.1271534]
[1760368193160,0.66,195.07,195.02,9.34]
[1760368193328,0.66,195.06,195.02,10.87647521]
[1760368193529,0.66,195.06,195.0,10.87647521]
[1760368193956,0.66,195.06,195.02,10.87647521]
[1760368194883,0.66,195.05,195.02,10.87647521]
[1760368195267,0.66,195.04,195.01,5.12794215]
[1760368195755,0.66,195.04,194.98,10.87647521]
[1760368195756,0.66,195.03,194.98,10.87647521]
[1760368195961,0.66,195.02,194.98,10.87647521]
[1760368196144,14.04708227,195.04,194.98,5.12869914]
[1760368196328,0.66,195.01,194.98,5.12869914]
[1760368196524,0.66,195.01,194.97,16.00538767]
[1760368197129,0.66,195.01,194.97,28.82787318]
[1760368197643,0.66,195.05,194.98,0.25]
[1760368197839,0.66,195.05,194.97,28.82787318]
[1760368198032,0.66,195.04,194.99,5.12846812]
[1760368198232,0.66,195.03,194.97,10.87647521]
[1760368198433,0.66,195.02,194.97,10.87647521]
[1760368198672,0.66,195.01,194.97,10.87647521]
[1760368198873,0.66,195.0,194.96,20.8]
[1760368199075,0.66,194.99,194.95,5.12949782]
[1760368199378,0.66,194.98,194.91,12.82582859]
[1760368199574,5.89323523,194.99,194.91,10.87647521]
[1760368199781,0.66,194.97,194.9,10.87647521]
[1760368199948,0.66,194.96,194.9,10.87647521]
[1760368200151,0.66,194.95,194.91,5.13057308]
[1760368200348,25.63313852,195.06,194.9,10.87647521]
[1760368200568,0.66,195.0,194.9,29.08439721]
[1760368200767,0.10352168,194.92,194.9,28.83439721]
[1760368200964,0.10352168,194.92,194.91,0.25]
[1760368201168,0.10352168,194.92,194.91,10.1030573]
[1760368201443,0.10352168,194.92,194.91,0.7630573]
[1760368201849,0.10352168,194.92,194.91,10.1030573]
[1760368202176,0.10352168,194.92,194.91,0.7630573]
[1760368202469,0.10352168,194.92,194.91,5.13057308]
[1760368203473,1e-08,194.92,194.91,26.11010558]
[1760368203662,1e-08,194.92,194.91,25.59704829]
[1760368203866,1e-08,194.92,194.91,16.25704829]
[1760368204178,1e-08,194.92,194.91,5.13057308]
[1760368204470,0.66000001,194.92,194.9,5.13083632]
[1760368204772,6.55323523,194.91,194.83,5.13267977]
[1760368205069,0.66,194.9,194.83,17.9643792]
[1760368205255,0.66,194.89,194.84,10.87647521]
[1760368205653,0.66,194.88,194.84,10.87647521]
[1760368206081,0.66,194.87,194.84,10.87647521]
[1760368206282,0.66,194.86,194.82,10.87647521]
[1760368206468,0.66,194.85,194.82,10.87647521]
[1760368206661,1e-08,194.92,194.82,10.87647521]
[1760368206662,0.66,194.89,194.82,10.87647521]
[1760368206863,0.66,194.88,194.82,10.87647521]
[1760368207255,0.66,194.87,194.81,22.17287102]
[1760368207578,0.66,194.86,194.81,33.63287102]
[1760368207875,0.66,194.85,194.8,5.13347022]
[1760368208079,0.66,194.84,194.8,5.13347022]
[1760368208377,0.66,194.83,194.8,5.13347022]
[1760368208875,0.66,194.82,194.8,5.13347022]
[1760368209076,5.13194529,194.86,194.8,5.13347022]
[1760368209077,0.66,194.85,194.8,5.13347022]
[1760368209379,0.66,194.84,194.8,17.96714578]
[1760368209895,0.66,194.83,194.8,17.96714578]
[1760368210563,5.89323523,194.86,194.8,5.13347022]
[1760368210763,0.66,194.85,194.8,5.13347022]
[1760368210960,0.66,194.84,194.8,5.13347022]
[1760368211276,0.66,194.83,194.8,5.13347022]
[1760368211451,0.66,194.82,194.79,5.33372672]
[1760368211976,0.66,194.86,194.79,18.16806113]
[1760368212165,1e-08,194.92,194.8,31.67647521]
[1760368212365,0.66,194.9,194.84,10.87647521]
[1760368212570,0.66,194.9,194.84,41.01647521]
[1760368212760,0.66,194.9,194.84,31.67647521]
[1760368212962,1e-08,194.92,194.88,31.67647521]
[1760368213565,1e-08,194.92,194.91,10.87647521]
[1760368213777,1e-08,194.92,194.91,31.67647521]
[1760368213973,1e-08,194.92,194.91,20.46647521]
[1760368214176,0.10965853,194.94,194.91,20.46647521]
[1760368214486,0.10516356,194.95,194.94,36.80625873]
[1760368214777,0.10516356,194.95,194.94,46.14625873]
[1760368214970,0.10516356,194.95,194.94,36.80625873]
[1760368215152,0.10516356,194.95,194.94,5.12978352]
[1760368215353,0.10516356,194.95,194.94,5.37978352]
[1760368215664,0.10516356,194.95,194.94,46.14625873]
[1760368215979,1e-08,195.0,194.97,20.8]
[1760368216167,0.66,195.1,194.98,31.67647521]
[1760368216364,0.66,195.1,195.03,31.67647521]
[1760368216776,0.66,195.1,195.03,41.01647521]
[1760368216981,0.66,195.09,195.03,31.67647521]
[1760368217158,0.66,195.08,195.03,31.67647521]
[1760368217360,0.66,195.07,195.03,31.67647521]
[1760368217578,0.66,195.06,195.03,31.67647521]
[1760368218285,0.66,195.05,195.0,28.82519315]
[1760368218473,0.66,195.04,195.0,16.00468033]
[1760368218673,0.66,195.03,195.0,16.00468033]
[1760368218874,0.66,195.02,195.0,16.00468033]
[1760368219076,17.94043774,195.09,195.0,16.00468033]
[1760368219077,0.66,195.05,195.0,16.00468033]
[1760368219461,0.66,195.08,195.0,28.82519315]
[1760368220087,0.66,195.08,195.02,10.87647521]
[1760368220288,0.66,195.08,195.04,10.87647521]
[1760368220781,0.10317138,195.05,195.04,10.87647521]
[1760368221778,0.10317138,195.05,195.04,31.67647521]
[1760368222077,0.10317138,195.05,195.03,5.12741629]
[1760368222273,0.10317138,195.05,195.03,10.87647521]
[1760368222472,0.10317138,195.05,195.02,5.12767921]
[1760368222690,0.10317138,195.05,194.98,17.95043284]
[1760368222691,0.66,195.04,194.98,17.95043284]
[1760368222876,0.10317138,195.05,194.98,17.95043284]
[1760368222877,0.10317138,195.05,194.99,20.72932202]
[1760368223082,0.10317138,195.05,195.03,10.87647521]
[1760368223991,0.76317138,195.05,195.03,10.87647521]
[1760368224188,0.76317138,195.05,195.03,16.00388415]
[1760368224591,0.10317138,195.05,195.03,16.00388415]
[1760368225090,0.66,195.04,194.98,10.87647521]
[1760368225268,0.76317138,195.05,194.98,10.87647521]
[1760368225469,0.76317138,195.05,195.0,10.87647521]
[1760368225680,0.10317138,195.05,195.0,10.87647521]
[1760368225972,0.10317138,195.05,194.97,0.04]
[1760368225973,0.66,195.04,194.98,9.34]
[1760368226172,0.66,195.04,194.97,10.91647521]
[1760368226367,0.66,195.03,194.98,5.12873115]
[1760368226573,0.66,195.02,194.98,5.12873115]
[1760368226785,0.66,195.01,194.96,16.00552436]
[1760368226980,6.55323523,195.0,194.93,5.13004668]
[1760368227175,6.55323523,194.99,194.93,5.13004668]
[1760368227381,0.66,194.99,194.93,5.13004668]
[1760368227590,0.66,194.99,194.93,17.95516338]
[1760368227785,0.66,194.99,194.94,10.87647521]
[1760368228397,0.66,194.98,194.95,5.12952038]
[1760368228764,11.02120005,195.01,194.94,5.12955838]
[1760368228978,5.89323523,194.98,194.9,12.82651282]
[1760368229176,0.66,195.0,194.91,25.34704829]
[1760368229984,0.66,195.0,194.91,16.00704829]
[1760368230300,0.66,195.0,194.94,5.12978352]
[1760368230607,0.66,195.03,194.95,10.87647521]
[1760368230969,0.10317138,195.05,194.99,10.87647521]
[1760368231179,0.10317138,195.05,194.99,10.91647521]
[1760368231393,0.10317138,195.05,195.01,10.87647521]
[1760368231871,0.10317138,195.05,195.01,20.21647521]
[1760368232416,0.10317138,195.05,195.02,5.12767921]
[1760368232576,0.66,195.04,195.02,5.12767921]
[1760368232893,0.10317138,195.05,195.01,16.00435432]
[1760368233696,0.10317138,195.05,195.01,28.82420971]
[1760368234994,5.89323523,195.03,194.93,0.04]
[1760368235193,6.55323523,195.03,194.95,44.49975265]
[1760368235412,5.89323523,195.01,194.95,10.87647521]
[1760368235698,0.66,195.0,194.95,10.87647521]
[1760368236084,0.66,195.04,194.95,10.87647521]
[1760368236294,0.10317138,195.05,194.94,43.60315993]
[1760368236295,0.10317138,195.05,194.98,10.87647521]
[1760368236625,0.76317138,195.05,194.99,5.12846812]
[1760368236994,6.55323523,195.04,194.99,5.12846812]
[1760368237194,0.66,195.03,194.99,5.12846812]
[1760368237407,0.66,195.02,194.99,5.12846812]
[1760368237800,0.76317138,195.05,194.99,17.94963843]
[1760368238713,0.10317138,195.05,195.01,17.94779754]
[1760368239591,0.76317138,195.05,195.01,5.12794215]
[1760368240293,0.66,195.05,195.01,5.12794215]
[1760368240490,0.66,195.05,195.0,5.12820512]
[1760368240995,0.09263933,195.02,195.0,5.12820512]
[1760368241419,0.09263933,195.02,194.98,5.12857933]
[1760368241802,0.09263933,195.02,194.99,10.91647521]
[1760368242012,0.09263933,195.02,194.99,10.87647521]
[1760368242818,0.09263933,195.02,195.01,10.87647521]
[1760368243017,0.09263933,195.02,195.01,20.21647521]
[1760368243199,0.09263933,195.02,195.01,10.87647521]
[1760368243393,0.09263933,195.02,195.01,10.91647521]
[1760368243593,0.09653948,195.04,195.03,31.67647521]
[1760368243938,0.10038152,195.11,195.06,20.8]
[1760368244090,0.10038152,195.11,195.06,41.01647521]